fUSD/lending_fUSD_20250415
["ID","MTS","AMOUNT","RATE_DAILY","PERIOD"]
[358073254,1744690247518,-500.0,0.00017897,2]
[358073255,1744690247530,-500.0,0.00017897,2]
[358073256,1744690247540,-644.28197626,0.00017897,2]
[358073257,1744690247551,-500.0,0.00017897,2]
[358073258,1744690247561,-500.0,0.00017897,2]
[358073259,1744690247571,-500.0,0.00017897,2]
[358073260,1744690247582,-500.0,0.00017897,2]
[358073261,1744690247591,-271.61292087,0.00017897,2]
[358073262,1744690247601,-500.0,0.00017897,2]
[358073263,1744690247610,-500.0,0.00017897,2]
[358073264,1744690247620,-500.0,0.00017897,2]
[358073265,1744690247630,-500.0,0.00017897,2]
[358073266,1744690247640,-500.0,0.00017897,2]
[358073267,1744690247650,-500.0,0.00017897,2]
[358073268,1744690247659,-500.0,0.00017897,2]
[358073269,1744690247669,-500.0,0.00017897,2]
[358073270,1744690247679,-500.0,0.00017897,2]
[358073271,1744690247688,-500.0,0.00017897,2]
[358073272,1744690247698,-500.0,0.00017897,2]
[358073273,1744690247708,-500.0,0.00017897,2]
[358073274,1744690247717,-500.0,0.00017897,2]
[358073275,1744690247727,-500.0,0.00017897,2]
[358073276,1744690247737,-500.0,0.00017897,2]
[358073277,1744690247746,-500.0,0.00017897,2]
[358073278,1744690247757,-500.0,0.00017897,2]
[358073279,1744690247767,-500.0,0.00017897,2]
[358073280,1744690247777,-500.0,0.00017897,2]
[358073281,1744690247786,-500.0,0.00017897,2]
[358073282,1744690247796,-500.0,0.00017897,2]
[358073283,1744690247805,-500.0,0.00017897,2]
[358073284,1744690247814,-500.0,0.00017897,2]
[358073285,1744690247823,-500.0,0.00017897,2]
[358073286,1744690247832,-500.0,0.00017897,2]
[358073287,1744690247841,-500.0,0.00017897,2]
[358073288,1744690247851,-500.0,0.00017897,2]
[358073289,1744690247860,-484.83292708,0.00017897,2]
[358073290,1744690247870,-500.0,0.00017897,2]
[358073291,1744690247880,-500.0,0.00017897,2]
[358073292,1744690247889,-500.0,0.00017897,2]
[358073293,1744690247898,-500.0,0.00017897,2]
[358073294,1744690247908,-500.0,0.00017897,2]
[358073295,1744690247918,-500.0,0.00017897,2]
[358073296,1744690247927,-500.0,0.00017897,2]
[358073297,1744690247937,-500.0,0.00017897,2]
[358073298,1744690247948,-500.0,0.00017897,2]
[358073299,1744690247960,-500.0,0.00017897,2]
[358073300,1744690247970,-500.0,0.00017897,2]
[358073301,1744690247980,-500.0,0.00017897,2]
[358073302,1744690247990,-500.0,0.00017897,2]
[358073303,1744690248000,-545.8933879,0.00017897,2]
[358073304,1744690248010,-500.0,0.00017897,2]
[358073305,1744690248020,-500.0,0.00017897,2]
[358073306,1744690248031,-500.0,0.00017897,2]
[358073307,1744690248041,-500.0,0.00017897,2]
[358073308,1744690248051,-500.0,0.00017897,2]
[358073309,1744690248061,-500.0,0.00017897,2]
[358073310,1744690248071,-500.0,0.00017897,2]
[358073311,1744690248080,-500.0,0.00017897,2]
[358073312,1744690248090,-194.45433449,0.00017897,2]
[358073313,1744690248099,-500.0,0.00017897,2]
[358073314,1744690248109,-500.0,0.00017897,2]
[358073315,1744690248119,-190.19418885,0.00017897,2]
[358073316,1744690248128,-237.0,0.00017898,2]
[358073317,1744690248137,-150.397,0.00017898,2]
[358073318,1744690248147,-186.473,0.00017898,2]
[358073319,1744690248156,-276.734,0.00017898,2]
[358073320,1744690248166,-151.093,0.00017898,2]
[358073321,1744690248176,-150.0,0.00017898,2]
[358073322,1744690248185,-250.0,0.00017898,2]
[358073323,1744690248194,-181.948,0.00017898,2]
[358073324,1744690248204,-156.459,0.00017898,2]
[358073325,1744690248214,-257.86,0.00017898,2]
[358073326,1744690248228,-172.214,0.00017898,2]
[358073327,1744690248238,-2047.0,0.00017898,2]
[358073328,1744690248248,-1288.0,0.00017898,2]
[358073329,1744690248259,-1328.0,0.00017898,2]
[358073330,1744690248268,-2106.0,0.00017898,2]
[358073331,1744690248278,-1293234.23555103,0.00017898,2]
[358073333,1744690250095,-500.0,0.00017895,2]
[358073334,1744690250106,-500.0,0.00017895,2]
[358073335,1744690250117,-531.22847141,0.00017896,2]
[358073336,1744690250127,-557.81,0.00017896,2]
[358073337,1744690250137,-6453.76152859,0.00017898,2]
[358073338,1744690250155,-700.04930781,0.00017898,2]
[358073339,1744690250167,-473.68488941,0.00017898,2]
[358073340,1744690250179,-538.98700241,0.00017898,2]
[358073341,1744690250190,-149445.76228688,0.00017898,2]
[358073342,1744690250251,-384.16329,0.00017895,2]
[358073343,1744690250264,-115.83671,0.00017895,2]
[358073344,1744690250274,-153.151177,0.00017895,2]
[358073345,1744690250289,-318.8803487,0.00017895,2]
[358073347,1744690463306,322.68,0.00016968,2]
[358073348,1744690572940,180.49,0.00016952,2]
[358073349,1744690810345,1000.0,0.0001695,2]
[358073350,1744690818878,556.89,0.00015037,2]
[358073351,1744690819097,556.89,0.00017301,2]
[358073352,1744690876446,18000.0,0.000196,7]
[358073353,1744690916283,233.02174354,0.00017898,19]
[358073354,1744690948488,284.92743887,0.000249,32]
[358073355,1744691110292,465.9134644,0.000154,2]
[358073356,1744691119821,2917.92725954,9e-05,2]
[358073357,1744691124990,176.92,0.00016961,2]
[358073358,1744691136854,440.17000931,9e-05,2]
[358073359,1744691191994,150.0,0.0002,3]
[358073360,1744691237236,205.0,9.8e-05,2]
[358073362,1744691301101,503.8,0.0002,3]
[358073373,1744691393968,150.0,0.0002,3]
[358073375,1744691402757,2000.0,0.0002,4]
[358073376,1744691414661,150.0,0.0002,3]
[358073387,1744691432185,-329.6950981,0.00017761,2]
[358073389,1744691432195,-250.0,0.00017763,2]
[358073391,1744691432204,-300.0,0.00017794,2]
[358073393,1744691432214,-120.3949019,0.00017794,2]
[358073394,1744691432241,-179.6050981,0.00017794,2]
[358073395,1744691432251,-517.40482185,0.00017795,2]
[358073396,1744691432298,-4837.62417815,0.00017795,2]
[358073397,1744691432307,-2675.8925,0.00017795,2]
[358073398,1744691432317,-1303.6696,0.00017795,2]
[358073399,1744691432326,-1360.1493,0.00017795,2]
[358073400,1744691432336,-7968.4137477,0.00017884,2]
[358073401,1744691432345,-58029.3176422,0.00017884,2]
[358073402,1744691432355,-3122.5977954,0.00017884,2]
[358073403,1744691432364,-162.380719,0.00017887,2]
[358073404,1744691432375,-938.392217,0.00017894,2]
[358073405,1744691432384,-938.392217,0.00017894,2]
[358073406,1744691432394,-614.463,0.00017894,2]
[358073407,1744691432403,-500.0,0.00017895,2]
[358073408,1744691432412,-2926.0,0.00017895,2]
[358073409,1744691432422,-1456.0,0.00017895,2]
[358073410,1744691432431,-500.0,0.00017895,2]
[358073411,1744691432441,-500.0,0.00017895,2]
[358073412,1744691432451,-500.0,0.00017895,2]
[358073413,1744691432461,-532.99160429,0.00017895,2]
[358073414,1744691432470,-500.0,0.00017895,2]
[358073415,1744691432479,-500.0,0.00017895,2]
[358073416,1744691432489,-570.51779091,0.00017895,2]
[358073417,1744691432498,-500.0,0.00017895,2]
[358073418,1744691432507,-500.0,0.00017895,2]
[358073419,1744691432516,-500.0,0.00017895,2]
[358073421,1744691432526,-500.0,0.00017895,2]
[358073423,1744691432535,-500.0,0.00017895,2]
[358073425,1744691432544,-500.0,0.00017895,2]
[358073427,1744691432553,-500.0,0.00017895,2]
[358073428,1744691432562,-500.0,0.00017895,2]
[358073429,1744691432571,-500.0,0.00017895,2]
[358073431,1744691432585,-500.0,0.00017895,2]
[358073433,1744691432594,-500.0,0.00017895,2]
[358073435,1744691432603,-500.0,0.00017895,2]
[358073437,1744691432612,-500.0,0.00017895,2]
[358073439,1744691432622,-500.0,0.00017895,2]
[358073441,1744691432632,-500.0,0.00017895,2]
[358073443,1744691432640,-500.0,0.00017895,2]
[358073445,1744691432650,-500.0,0.00017895,2]
[358073447,1744691432659,-500.0,0.00017895,2]
[358073449,1744691432668,-500.0,0.00017895,2]
[358073450,1744691432678,-500.0,0.00017895,2]
[358073453,1744691432687,-500.0,0.00017895,2]
[358073455,1744691432696,-563.25642255,0.00017895,2]
[358073457,1744691432706,-500.0,0.00017895,2]
[358073459,1744691432715,-500.0,0.00017895,2]
[358073460,1744691432724,-500.0,0.00017895,2]
[358073462,1744691432734,-500.0,0.00017895,2]
[358073464,1744691432743,-500.0,0.00017895,2]
[358073466,1744691432752,-500.0,0.00017895,2]
[358073468,1744691432762,-500.0,0.00017895,2]
[358073470,1744691432771,-500.0,0.00017895,2]
[358073472,1744691432780,-500.0,0.00017895,2]
[358073474,1744691432789,-500.0,0.00017895,2]
[358073476,1744691432798,-500.0,0.00017895,2]
[358073478,1744691432807,-500.0,0.00017895,2]
[358073481,1744691432817,-500.0,0.00017895,2]
[358073482,1744691432826,-500.0,0.00017895,2]
[358073484,1744691432835,-500.0,0.00017895,2]
[358073486,1744691432844,-500.0,0.00017895,2]
[358073488,1744691432854,-217.20616563,0.00017895,2]
[358073490,1744691432863,-500.0,0.00017895,2]
[358073492,1744691432873,-500.0,0.00017895,2]
[358073494,1744691432883,-500.0,0.00017895,2]
[358073496,1744691432892,-500.0,0.00017895,2]
[358073498,1744691432901,-500.0,0.00017895,2]
[358073500,1744691432910,-500.0,0.00017895,2]
[358073502,1744691432920,-500.0,0.00017895,2]
[358073504,1744691432929,-500.0,0.00017895,2]
[358073506,1744691432938,-500.0,0.00017895,2]
[358073508,1744691432947,-646.59652616,0.00017895,2]
[358073510,1744691432957,-500.0,0.00017895,2]
[358073512,1744691432966,-500.0,0.00017895,2]
[358073514,1744691432975,-500.0,0.00017895,2]
[358073516,1744691432985,-500.0,0.00017895,2]
[358073518,1744691432994,-500.0,0.00017895,2]
[358073520,1744691433003,-500.0,0.00017895,2]
[358073522,1744691433012,-500.0,0.00017895,2]
[358073524,1744691433022,-500.0,0.00017895,2]
[358073526,1744691433032,-518.60900013,0.00017895,2]
[358073528,1744691433041,-500.0,0.00017895,2]
[358073530,1744691433050,-500.0,0.00017895,2]
[358073532,1744691433060,-500.0,0.00017895,2]
[358073534,1744691433068,-500.0,0.00017895,2]
[358073536,1744691433078,-500.0,0.00017895,2]
[358073538,1744691433088,-500.0,0.00017895,2]
[358073540,1744691433097,-500.0,0.00017895,2]
[358073542,1744691433107,-500.0,0.00017895,2]
[358073544,1744691433116,-500.0,0.00017895,2]
[358073546,1744691433126,-500.0,0.00017895,2]
[358073548,1744691433135,-500.0,0.00017895,2]
[358073549,1744691433144,-500.0,0.00017895,2]
[358073552,1744691433155,-500.0,0.00017895,2]
[358073554,1744691433165,-500.0,0.00017895,2]
[358073556,1744691433175,-500.0,0.00017895,2]
[358073558,1744691433185,-592.02856179,0.00017895,2]
[358073559,1744691433194,-500.0,0.00017895,2]
[358073560,1744691433203,-500.0,0.00017895,2]
[358073561,1744691433213,-541.49473023,0.00017895,2]
[358073562,1744691433222,-500.0,0.00017895,2]
[358073563,1744691433231,-500.0,0.00017895,2]
[358073564,1744691433240,-500.0,0.00017895,2]
[358073565,1744691433250,-500.0,0.00017895,2]
[358073566,1744691433259,-500.0,0.00017895,2]
[358073567,1744691433270,-500.0,0.00017895,2]
[358073568,1744691433280,-500.0,0.00017895,2]
[358073569,1744691433289,-500.0,0.00017895,2]
[358073570,1744691433299,-500.0,0.00017895,2]
[358073571,1744691433309,-500.0,0.00017895,2]
[358073572,1744691433319,-500.0,0.00017895,2]
[358073573,1744691433329,-500.0,0.00017895,2]
[358073574,1744691433338,-500.0,0.00017895,2]
[358073575,1744691433348,-500.0,0.00017895,2]
[358073576,1744691433357,-500.0,0.00017895,2]
[358073577,1744691433367,-500.0,0.00017895,2]
[358073578,1744691433377,-500.0,0.00017895,2]
[358073579,1744691433387,-500.0,0.00017895,2]
[358073580,1744691433396,-500.0,0.00017895,2]
[358073581,1744691433406,-150.0,0.00017895,2]
[358073582,1744691433415,-500.0,0.00017895,2]
[358073583,1744691433424,-500.0,0.00017895,2]
[358073584,1744691433434,-203.76679084,0.00017895,2]
[358073585,1744691433444,-150.0,0.00017895,2]
[358073586,1744691433453,-500.0,0.00017895,2]
[358073587,1744691433462,-500.0,0.00017895,2]
[358073588,1744691433472,-500.0,0.00017895,2]
[358073589,1744691433482,-500.0,0.00017895,2]
[358073590,1744691433491,-500.0,0.00017895,2]
[358073591,1744691433500,-500.0,0.00017895,2]
[358073592,1744691433509,-500.0,0.00017895,2]
[358073593,1744691433519,-500.0,0.00017895,2]
[358073594,1744691433528,-500.0,0.00017895,2]
[358073595,1744691433539,-500.0,0.00017895,2]
[358073596,1744691433548,-500.0,0.00017895,2]
[358073597,1744691433558,-500.0,0.00017895,2]
[358073598,1744691433568,-500.0,0.00017895,2]
[358073599,1744691433580,-500.0,0.00017895,2]
[358073600,1744691433590,-500.0,0.00017895,2]
[358073601,1744691433599,-9979.64,0.00017895,2]
[358073602,1744691433610,-500.0,0.00017895,2]
[358073603,1744691433621,-500.0,0.00017895,2]
[358073604,1744691433630,-500.0,0.00017895,2]
[358073605,1744691433639,-500.0,0.00017895,2]
[358073606,1744691433648,-586.04063651,0.00017895,2]
[358073607,1744691433659,-500.0,0.00017895,2]
[358073608,1744691433668,-500.0,0.00017895,2]
[358073609,1744691433678,-500.0,0.00017895,2]
[358073610,1744691433688,-500.0,0.00017895,2]
[358073611,1744691433697,-500.0,0.00017895,2]
[358073612,1744691433707,-588.02807657,0.00017895,2]
[358073613,1744691433716,-500.0,0.00017895,2]
[358073614,1744691433726,-500.0,0.00017895,2]
[358073615,1744691433735,-500.0,0.00017895,2]
[358073616,1744691433745,-500.0,0.00017895,2]
[358073617,1744691433755,-473.74727111,0.00017895,2]
[358073618,1744691433764,-500.0,0.00017895,2]
[358073619,1744691433773,-500.0,0.00017895,2]
[358073620,1744691433783,-500.0,0.00017895,2]
[358073621,1744691433792,-500.0,0.00017895,2]
[358073622,1744691433802,-500.0,0.00017895,2]
[358073623,1744691433811,-500.0,0.00017895,2]
[358073624,1744691433820,-500.0,0.00017895,2]
[358073625,1744691433831,-500.0,0.00017895,2]
[358073626,1744691433840,-500.0,0.00017895,2]
[358073627,1744691433850,-500.0,0.00017895,2]
[358073628,1744691433860,-500.0,0.00017895,2]
[358073629,1744691433871,-500.0,0.00017895,2]
[358073630,1744691433880,-500.0,0.00017895,2]
[358073631,1744691433890,-500.0,0.00017895,2]
[358073632,1744691433899,-500.0,0.00017895,2]
[358073633,1744691433908,-500.0,0.00017895,2]
[358073634,1744691433918,-500.0,0.00017895,2]
[358073635,1744691433928,-500.0,0.00017895,2]
[358073636,1744691433937,-500.0,0.00017895,2]
[358073637,1744691433946,-500.0,0.00017895,2]
[358073638,1744691433956,-500.0,0.00017895,2]
[358073639,1744691433965,-500.0,0.00017895,2]
[358073640,1744691433976,-500.0,0.00017895,2]
[358073641,1744691433985,-500.0,0.00017895,2]
[358073642,1744691433994,-500.0,0.00017895,2]
[358073643,1744691434003,-500.0,0.00017895,2]
[358073644,1744691434013,-500.0,0.00017895,2]
[358073645,1744691434023,-500.0,0.00017895,2]
[358073646,1744691434032,-500.0,0.00017895,2]
[358073647,1744691434042,-500.0,0.00017895,2]
[358073648,1744691434051,-500.0,0.00017895,2]
[358073649,1744691434061,-500.0,0.00017895,2]
[358073650,1744691434070,-214.16050736,0.00017895,2]
[358073651,1744691434257,-285.83949264,0.00017895,2]
[358073652,1744691434267,-406.71323656,0.00017895,2]
[358073653,1744691434353,-93.28676344,0.00017895,2]
[358073654,1744691434362,-500.0,0.00017895,2]
[358073655,1744691434372,-500.0,0.00017895,2]
[358073656,1744691434380,-543.18417944,0.00017895,2]
[358073657,1744691434389,-500.0,0.00017895,2]
[358073658,1744691434398,-500.0,0.00017895,2]
[358073659,1744691434408,-500.0,0.00017895,2]
[358073660,1744691434418,-500.0,0.00017895,2]
[358073661,1744691434427,-500.0,0.00017895,2]
[358073662,1744691434436,-500.0,0.00017895,2]
[358073663,1744691434445,-200.49400343,0.00017895,2]
[358073664,1744691434455,-500.0,0.00017895,2]
[358073665,1744691434464,-500.0,0.00017895,2]
[358073666,1744691434474,-500.0,0.00017896,2]
[358073667,1744691434485,-500.0,0.00017896,2]
[358073668,1744691434494,-498.13910285,0.00017896,2]
[358073669,1744691434503,-500.0,0.00017896,2]
[358073670,1744691434513,-515.95123419,0.00017896,2]
[358073671,1744691434523,-290.12879347,0.00017896,2]
[358073672,1744691434532,-500.0,0.00017896,2]
[358073673,1744691434541,-500.0,0.00017896,2]
[358073674,1744691434551,-572.69286164,0.00017896,2]
[358073675,1744691434560,-500.0,0.00017896,2]
[358073676,1744691434570,-500.0,0.00017896,2]
[358073677,1744691434584,-518.30858764,0.00017896,2]
[358073678,1744691434594,-500.0,0.00017896,2]
[358073679,1744691434604,-500.0,0.00017896,2]
[358073680,1744691434614,-500.0,0.00017896,2]
[358073681,1744691434624,-500.0,0.00017896,2]
[358073682,1744691434633,-500.0,0.00017896,2]
[358073683,1744691434642,-506.07910658,0.00017896,2]
[358073684,1744691434652,-224.43503646,0.00017896,2]
[358073685,1744691434662,-502.29622703,0.00017896,2]
[358073686,1744691434671,-500.0,0.00017896,2]
[358073687,1744691434681,-500.0,0.00017896,2]
[358073688,1744691434690,-508.09655671,0.00017896,2]
[358073689,1744691434699,-509.55736934,0.00017896,2]
[358073690,1744691434708,-1000.0,0.00017896,2]
[358073691,1744691434717,-522.00552527,0.00017896,2]
[358073692,1744691434727,-500.0,0.00017896,2]
[358073693,1744691434736,-509.62954382,0.00017896,2]
[358073694,1744691434746,-514.38896866,0.00017896,2]
[358073695,1744691434755,-570.81218958,0.00017896,2]
[358073696,1744691434764,-502.62503777,0.00017896,2]
[358073697,1744691434775,-500.0,0.00017896,2]
[358073698,1744691434783,-500.0,0.00017896,2]
[358073699,1744691434792,-500.0,0.00017896,2]
[358073700,1744691434800,-500.0,0.00017896,2]
[358073701,1744691434808,-500.0,0.00017896,2]
[358073702,1744691434816,-238.67354013,0.00017896,2]
[358073703,1744691434825,-500.0,0.00017896,2]
[358073704,1744691434834,-500.0,0.00017896,2]
[358073705,1744691434844,-514.16540103,0.00017896,2]
[358073706,1744691434854,-500.0,0.00017896,2]
[358073707,1744691434863,-500.0,0.00017896,2]
[358073708,1744691434872,-500.0,0.00017896,2]
[358073709,1744691434882,-500.0,0.00017896,2]
[358073710,1744691434892,-522.60325126,0.00017896,2]
[358073711,1744691434901,-503.27154328,0.00017896,2]
[358073712,1744691434910,-521.95411516,0.00017896,2]
[358073713,1744691434919,-527.77619135,0.00017896,2]
[358073714,1744691434929,-517.11623414,0.00017896,2]
[358073715,1744691434938,-505.71821778,0.00017896,2]
[358073716,1744691434947,-509.53163894,0.00017896,2]
[358073717,1744691434956,-513.94851645,0.00017896,2]
[358073718,1744691434966,-506.80778416,0.00017896,2]
[358073719,1744691434975,-594.17581326,0.00017896,2]
[358073720,1744691434983,-513.28104484,0.00017896,2]
[358073721,1744691434992,-500.0,0.00017896,2]
[358073722,1744691435001,-522.29726856,0.00017896,2]
[358073723,1744691435010,-500.0,0.00017896,2]
[358073724,1744691435019,-500.0,0.00017896,2]
[358073725,1744691435029,-508.62739184,0.00017896,2]
[358073726,1744691435039,-527.31071435,0.00017896,2]
[358073727,1744691435048,-508.19870307,0.00017896,2]
[358073728,1744691435057,-535.46742054,0.00017896,2]
[358073729,1744691435066,-500.0,0.00017896,2]
[358073730,1744691435075,-538.32822534,0.00017896,2]
[358073731,1744691435084,-515.86371102,0.00017896,2]
[358073732,1744691435094,-515.51627235,0.00017896,2]
[358073733,1744691435103,-500.0,0.00017896,2]
[358073734,1744691435112,-500.0,0.00017896,2]
[358073735,1744691435122,-520.33991884,0.00017896,2]
[358073736,1744691435132,-541.21212206,0.00017896,2]
[358073737,1744691435141,-500.0,0.00017896,2]
[358073738,1744691435150,-505.14458296,0.00017896,2]
[358073739,1744691435159,-500.0,0.00017896,2]
[358073740,1744691435168,-500.0,0.00017896,2]
[358073741,1744691435178,-530.91960512,0.00017896,2]
[358073742,1744691435187,-517.1620443,0.00017896,2]
[358073743,1744691435196,-500.0,0.00017896,2]
[358073744,1744691435204,-512.95825098,0.00017896,2]
[358073745,1744691435214,-500.0,0.00017896,2]
[358073746,1744691435223,-500.0,0.00017896,2]
[358073747,1744691435232,-505.7517034,0.00017896,2]
[358073748,1744691435241,-508.03341372,0.00017896,2]
[358073749,1744691435251,-500.0,0.00017896,2]
[358073750,1744691435260,-504.11838068,0.00017896,2]
[358073751,1744691435270,-500.0,0.00017896,2]
[358073752,1744691435279,-510.18899979,0.00017896,2]
[358073753,1744691435289,-500.0,0.00017896,2]
[358073754,1744691435472,-500.0,0.00017896,2]
[358073755,1744691435483,-515.09011453,0.00017896,2]
[358073756,1744691435493,-500.0,0.00017896,2]
[358073757,1744691435502,-189.16517466,0.00017896,2]
[358073758,1744691435512,-500.0,0.00017896,2]
[358073759,1744691435522,-500.0,0.00017896,2]
[358073760,1744691435531,-500.0,0.00017896,2]
[358073761,1744691435541,-500.0,0.00017896,2]
[358073762,1744691435550,-621.1406273,0.00017896,2]
[358073763,1744691435560,-508.31902186,0.00017896,2]
[358073764,1744691435570,-500.0,0.00017896,2]
[358073765,1744691435584,-500.0,0.00017896,2]
[358073766,1744691435593,-500.0,0.00017896,2]
[358073767,1744691435602,-500.0,0.00017896,2]
[358073768,1744691435611,-512.80556907,0.00017896,2]
[358073769,1744691435621,-503.26113864,0.00017896,2]
[358073770,1744691435631,-500.0,0.00017896,2]
[358073771,1744691435640,-500.0,0.00017896,2]
[358073772,1744691435650,-507.96859142,0.00017896,2]
[358073773,1744691435659,-507.50894623,0.00017896,2]
[358073774,1744691435668,-518.18822824,0.00017896,2]
[358073775,1744691435678,-500.0,0.00017896,2]
[358073776,1744691435687,-441.11421888,0.00017896,2]
[358073777,1744691435696,-500.0,0.00017896,2]
[358073778,1744691435705,-500.0,0.00017896,2]
[358073779,1744691435715,-542.06443327,0.00017896,2]
[358073780,1744691435724,-501.69755837,0.00017896,2]
[358073781,1744691435733,-501.54167596,0.00017896,2]
[358073782,1744691435742,-503.32108041,0.00017896,2]
[358073783,1744691435752,-500.0,0.00017896,2]
[358073784,1744691435761,-500.0,0.00017896,2]
[358073785,1744691435770,-300.0,0.00017896,2]
[358073786,1744691435779,-500.0,0.00017896,2]
[358073787,1744691435789,-500.0,0.00017896,2]
[358073788,1744691435799,-500.0,0.00017896,2]
[358073789,1744691435809,-500.0,0.00017896,2]
[358073790,1744691435818,-500.0,0.00017896,2]
[358073791,1744691435827,-500.0,0.00017896,2]
[358073792,1744691435836,-500.0,0.00017896,2]
[358073793,1744691435845,-452.16158446,0.00017896,2]
[358073794,1744691435855,-536.99967452,0.00017896,2]
[358073795,1744691435864,-500.0,0.00017896,2]
[358073796,1744691435873,-500.0,0.00017896,2]
[358073797,1744691435882,-500.0,0.00017896,2]
[358073798,1744691435891,-500.0,0.00017896,2]
[358073799,1744691435900,-500.0,0.00017896,2]
[358073800,1744691435909,-564.77894294,0.00017896,2]
[358073801,1744691435918,-500.0,0.00017896,2]
[358073802,1744691435927,-500.0,0.00017896,2]
[358073803,1744691435937,-500.0,0.00017896,2]
[358073804,1744691435947,-500.0,0.00017896,2]
[358073805,1744691435956,-500.0,0.00017896,2]
[358073806,1744691435966,-500.0,0.00017896,2]
[358073807,1744691435975,-504.78528371,0.00017896,2]
[358073808,1744691435985,-348.4534067,0.00017896,2]
[358073809,1744691435994,-500.0,0.00017896,2]
[358073810,1744691436003,-500.0,0.00017896,2]
[358073811,1744691436012,-500.0,0.00017896,2]
[358073812,1744691436021,-514.62400742,0.00017896,2]
[358073813,1744691436031,-521.84896271,0.00017896,2]
[358073814,1744691436040,-500.0,0.00017896,2]
[358073815,1744691436049,-509.78369808,0.00017896,2]
[358073816,1744691436058,-500.0,0.00017896,2]
[358073817,1744691436068,-151.92553959,0.00017896,2]
[358073818,1744691436077,-505.12418633,0.00017896,2]
[358073819,1744691436087,-5137.50319906,0.00017896,2]
[358073820,1744691436096,-500.0,0.00017896,2]
[358073821,1744691436105,-500.0,0.00017896,2]
[358073822,1744691436115,-505.58987851,0.00017896,2]
[358073823,1744691436124,-500.0,0.00017896,2]
[358073824,1744691436134,-513.31420618,0.00017896,2]
[358073825,1744691436143,-514.2613238,0.00017896,2]
[358073826,1744691436153,-500.0,0.00017896,2]
[358073827,1744691436163,-517.45443453,0.00017896,2]
[358073828,1744691436172,-523.96289775,0.00017896,2]
[358073829,1744691436181,-503.23018259,0.00017896,2]
[358073830,1744691436191,-586.22055697,0.00017896,2]
[358073831,1744691436200,-500.0,0.00017896,2]
[358073832,1744691436210,-500.0,0.00017897,2]
[358073833,1744691436219,-500.0,0.00017897,2]
[358073834,1744691436229,-500.0,0.00017897,2]
[358073835,1744691436238,-601.16717789,0.00017897,2]
[358073836,1744691436247,-500.0,0.00017897,2]
[358073837,1744691436257,-500.0,0.00017897,2]
[358073838,1744691436267,-516.51202626,0.00017897,2]
[358073839,1744691436276,-500.0,0.00017897,2]
[358073840,1744691436286,-500.0,0.00017897,2]
[358073841,1744691436296,-500.0,0.00017897,2]
[358073842,1744691436306,-500.0,0.00017897,2]
[358073843,1744691436316,-1000.0,0.00017897,2]
[358073844,1744691436325,-500.0,0.00017897,2]
[358073845,1744691436335,-500.0,0.00017897,2]
[358073846,1744691436344,-500.0,0.00017897,2]
[358073847,1744691436354,-500.0,0.00017897,2]
[358073848,1744691436363,-593.66709112,0.00017897,2]